[Event "December 19 Early 2023"]
[Site "https://www.chess.com"]
[Date "2023.12.19"]
[Round "5"]
[White "Dowgird, Filip"]
[Black "Burmakin, Evgeniy"]
[Result "1-0"]
[Board "119"]
[TimeControl "180+1"]
[WhiteFideId "1121235"]
[BlackFideId "4163729"]
[WhiteElo "2248"]
[BlackElo "2106"]
[WhiteTeam "POL"]
[BlackTeam "RUS"]
[WhiteClock "0:00:12"]
[BlackClock "0:00:03"]

1. d4 {[%clk 0:03:00]}  Nf6 {[%clk 0:02:59]} 2. Bf4 {[%clk 0:03:00]}  g6 {[%clk 0:02:58]} 3. e3 {[%clk 0:03:00]}  Bg7 {[%clk 0:02:58]} 4. h3 {[%clk 0:03:00]}  O-O {[%clk 0:02:58]} 5. Nf3 {[%clk 0:03:00]}  d6 {[%clk 0:02:57]} 6. c3 {[%clk 0:03:01]}  Re8 {[%clk 0:02:49]} 7. Be2 {[%clk 0:02:57]}  Nfd7 {[%clk 0:02:44]} 8. Bh2 {[%clk 0:02:52]}  e5 {[%clk 0:02:43]} 9. dxe5 {[%clk 0:02:52]}  dxe5 {[%clk 0:02:44]} 10. Na3 {[%clk 0:02:52]}  Nc6 {[%clk 0:02:42]} 11. Bb5 {[%clk 0:02:49]}  Qf6 {[%clk 0:02:33]} 12. Nc4 {[%clk 0:02:45]}  a6 {[%clk 0:02:28]} 13. Bxc6 {[%clk 0:02:36]}  Qxc6 {[%clk 0:02:29]} 14. Qe2 {[%clk 0:02:23]}  b6 {[%clk 0:02:19]} 15. O-O {[%clk 0:02:21]}  a5 {[%clk 0:02:18]} 16. Ncd2 {[%clk 0:01:58]}  Ba6 {[%clk 0:02:15]} 17. c4 {[%clk 0:01:58]}  Nc5 {[%clk 0:02:13]} 18. Rfd1 {[%clk 0:01:52]}  Rad8 {[%clk 0:02:09]} 19. Rac1 {[%clk 0:01:46]}  Nd3 {[%clk 0:01:59]} 20. Rb1 {[%clk 0:01:27]}  e4 {[%clk 0:01:00]} 21. Ne1 {[%clk 0:01:27]}  Nxb2 {[%clk 0:00:57]} 22. Rdc1 {[%clk 0:01:21]}  Nd3 {[%clk 0:00:55]} 23. Nxd3 {[%clk 0:01:21]}  exd3 {[%clk 0:00:52]} 24. Qd1 {[%clk 0:01:18]}  Bb7 {[%clk 0:00:51]} 25. Qf1 {[%clk 0:01:16]}  a4 {[%clk 0:00:49]} 26. Bf4 {[%clk 0:01:15]}  h6 {[%clk 0:00:48]} 27. Bg3 {[%clk 0:01:04]}  a3 {[%clk 0:00:47]} 28. Rb3 {[%clk 0:00:59]}  Bb2 {[%clk 0:00:43]} 29. Rd1 {[%clk 0:00:59]}  Qa4 {[%clk 0:00:31]} 30. Bxc7 {[%clk 0:00:54]}  Rc8 {[%clk 0:00:16]} 31. Bxb6 {[%clk 0:00:54]}  Ba6 {[%clk 0:00:14]} 32. Qxd3 {[%clk 0:00:43]}  Qc6 {[%clk 0:00:08]} 33. Bd4 {[%clk 0:00:40]}  Bxc4 {[%clk 0:00:08]} 34. Nxc4 {[%clk 0:00:40]}  Qxc4 {[%clk 0:00:08]} 35. Qxc4 {[%clk 0:00:40]}  Rxc4 {[%clk 0:00:09]} 36. Bxb2 {[%clk 0:00:40]}  axb2 {[%clk 0:00:09]} 37. Rxb2 {[%clk 0:00:41]}  Ra8 {[%clk 0:00:09]} 38. Rd7 {[%clk 0:00:38]}  Rc1+ {[%clk 0:00:04]} 39. Kh2 {[%clk 0:00:38]}  Ra1 {[%clk 0:00:04]} 40. Rbb7 {[%clk 0:00:35]}  Rf8 {[%clk 0:00:04]} 41. Ra7 {[%clk 0:00:36]}  Kg7 {[%clk 0:00:03]} 42. h4 {[%clk 0:00:35]}  Kf6 {[%clk 0:00:04]} 43. Kg3 {[%clk 0:00:35]}  h5 {[%clk 0:00:04]} 44. Kf4 {[%clk 0:00:32]}  Ke6 {[%clk 0:00:05]} 45. e4 {[%clk 0:00:25]}  f6 {[%clk 0:00:04]} 46. Re7+ {[%clk 0:00:21]}  Kd6 {[%clk 0:00:03]} 47. Rg7 {[%clk 0:00:20]}  g5+ {[%clk 0:00:03]} 48. hxg5 {[%clk 0:00:19]}  fxg5+ {[%clk 0:00:04]} 49. Ke3 {[%clk 0:00:19]}  g4 {[%clk 0:00:03]} 50. Rg6+ {[%clk 0:00:14]}  Kc5 {[%clk 0:00:03]} 51. Rg5+ {[%clk 0:00:14]}  Kb6 {[%clk 0:00:03]} 52. Ra3 {[%clk 0:00:13]}  Rf1 {[%clk 0:00:02]} 53. Rf5 {[%clk 0:00:14]}  Re1+ {[%clk 0:00:02]} 54. Kf4 {[%clk 0:00:14]}  Rf1 {[%clk 0:00:02]} 55. Kg3 {[%clk 0:00:10]}  Rxf5 {[%clk 0:00:01]} 56. exf5 {[%clk 0:00:11]}  h4+ {[%clk 0:00:01]} 57. Kxh4 {[%clk 0:00:10]}  Rxf2 {[%clk 0:00:02]} 58. Kxg4 {[%clk 0:00:10]}  Rxg2+ {[%clk 0:00:02]} 59. Kf4 {[%clk 0:00:11]}  Rf2+ {[%clk 0:00:02]} 60. Ke5 {[%clk 0:00:11]}  Re2+ {[%clk 0:00:02]} 61. Kf6 {[%clk 0:00:12]}  Kc6 {[%clk 0:00:02]} 62. Kf7 {[%clk 0:00:10]}  Kd6 {[%clk 0:00:02]} 63. f6 {[%clk 0:00:11]}  Rf2 {[%clk 0:00:03]} 64. Ra6+ {[%clk 0:00:10]}  Ke5 {[%clk 0:00:03]} 65. Ke7 {[%clk 0:00:10]}  Rc2 {[%clk 0:00:02]} 66. f7 {[%clk 0:00:10]}  Rc7+ {[%clk 0:00:03]} 67. Ke8 {[%clk 0:00:10]}  Rc8+ {[%clk 0:00:03]} 68. Kd7 {[%clk 0:00:11]}  Rf8 {[%clk 0:00:04]} 69. Ke7 {[%clk 0:00:12]}  Rxf7+ {[%clk 0:00:03]} 70. Kxf7 {[%clk 0:00:12]} 1-0

[Event "December 19 Early 2023"]
[Site "https://www.chess.com"]
[Date "2023.12.19"]
[Round "5"]
[White "Cansun, Can Alp"]
[Black "Novikov, Evgenij"]
[Result "1-0"]
[Board "122"]
[TimeControl "180+1"]
[WhiteFideId "6390188"]
[BlackFideId "4125380"]
[WhiteElo "2031"]
[BlackElo "2242"]
[WhiteTeam "TUR"]
[BlackTeam "RUS"]
[WhiteClock "0:00:04"]
[BlackClock "0:00:00"]

1. d4 {[%clk 0:03:00]}  Nf6 {[%clk 0:02:43]} 2. c4 {[%clk 0:03:00]}  c5 {[%clk 0:02:34]} 3. d5 {[%clk 0:02:59]}  b5 {[%clk 0:01:53]} 4. cxb5 {[%clk 0:02:55]}  a6 {[%clk 0:01:47]} 5. f3 {[%clk 0:02:53]}  d6 {[%clk 0:01:45]} 6. e4 {[%clk 0:02:39]}  g6 {[%clk 0:01:41]} 7. Na3 {[%clk 0:02:36]}  Bg7 {[%clk 0:01:41]} 8. Ne2 {[%clk 0:02:36]}  axb5 {[%clk 0:01:37]} 9. Nxb5 {[%clk 0:02:35]}  Na6 {[%clk 0:01:37]} 10. Nec3 {[%clk 0:02:34]}  O-O {[%clk 0:01:36]} 11. Be2 {[%clk 0:02:34]}  Nc7 {[%clk 0:01:24]} 12. O-O {[%clk 0:02:32]}  Ba6 {[%clk 0:01:22]} 13. Qc2 {[%clk 0:02:19]}  Nd7 {[%clk 0:01:15]} 14. a4 {[%clk 0:02:05]}  Bb7 {[%clk 0:00:52]} 15. Bd2 {[%clk 0:02:01]}  Na6 {[%clk 0:00:50]} 16. Na2 {[%clk 0:01:52]}  Ne5 {[%clk 0:00:38]} 17. Bc3 {[%clk 0:01:49]}  Bh6 {[%clk 0:00:38]} 18. Bd2 {[%clk 0:01:48]}  Bg7 {[%clk 0:00:36]} 19. f4 {[%clk 0:01:41]}  Nd7 {[%clk 0:00:36]} 20. Bc3 {[%clk 0:01:41]}  Nf6 {[%clk 0:00:33]} 21. Kh1 {[%clk 0:01:32]}  Bc8 {[%clk 0:00:27]} 22. h3 {[%clk 0:01:31]}  h5 {[%clk 0:00:26]} 23. b4 {[%clk 0:01:26]}  Bd7 {[%clk 0:00:23]} 24. Rab1 {[%clk 0:01:23]}  Rc8 {[%clk 0:00:20]} 25. Qd3 {[%clk 0:01:12]}  cxb4 {[%clk 0:00:20]} 26. Nxb4 {[%clk 0:01:13]}  Nc5 {[%clk 0:00:20]} 27. Qe3 {[%clk 0:01:06]}  Ncxe4 {[%clk 0:00:19]} 28. Bd4 {[%clk 0:00:58]}  h4 {[%clk 0:00:18]} 29. Kh2 {[%clk 0:00:54]}  Ng3 {[%clk 0:00:18]} 30. Rfc1 {[%clk 0:00:55]}  Rxc1 {[%clk 0:00:15]} 31. Rxc1 {[%clk 0:00:54]}  Nfe4 {[%clk 0:00:14]} 32. Bxg7 {[%clk 0:00:51]}  Kxg7 {[%clk 0:00:15]} 33. Bd3 {[%clk 0:00:45]}  Bf5 {[%clk 0:00:14]} 34. Nc6 {[%clk 0:00:38]}  Qd7 {[%clk 0:00:15]} 35. Nbd4 {[%clk 0:00:36]}  Re8 {[%clk 0:00:14]} 36. a5 {[%clk 0:00:34]}  e5 {[%clk 0:00:12]} 37. a6 {[%clk 0:00:25]}  exd4 {[%clk 0:00:11]} 38. Qxd4+ {[%clk 0:00:21]}  Kh7 {[%clk 0:00:11]} 39. a7 {[%clk 0:00:20]}  Ra8 {[%clk 0:00:10]} 40. Rb1 {[%clk 0:00:18]}  Nc5 {[%clk 0:00:09]} 41. Rb8 {[%clk 0:00:11]}  f6 {[%clk 0:00:01]} 42. Qxf6 {[%clk 0:00:07]}  Qg7 {[%clk 0:00:01]} 43. Qxg7+ {[%clk 0:00:06]}  Kxg7 {[%clk 0:00:02]} 44. Rxa8 {[%clk 0:00:05]}  Bxd3 {[%clk 0:00:01]} 45. Rb8 {[%clk 0:00:06]}  Nce4 {[%clk 0:00:01]} 46. a8=Q {[%clk 0:00:05]}  Nf6 {[%clk 0:00:01]} 47. Qb7+ {[%clk 0:00:05]}  Kh6 {[%clk 0:00:00]} 48. Rh8+ {[%clk 0:00:04]} 1-0

[Event "December 19 Early 2023"]
[Site "https://www.chess.com"]
[Date "2023.12.19"]
[Round "5"]
[White "Aswath, S"]
[Black "Topalov, Aleksandar"]
[Result "1-0"]
[Board "123"]
[TimeControl "180+1"]
[WhiteFideId "46694919"]
[BlackFideId "925659"]
[WhiteElo "2138"]
[BlackElo "2151"]
[WhiteTeam "IND"]
[BlackTeam "SRB"]
[WhiteClock "0:00:14"]
[BlackClock "0:00:07"]

1. d4 {[%clk 0:03:00]}  Nf6 {[%clk 0:02:59]} 2. c4 {[%clk 0:03:00]}  c5 {[%clk 0:02:59]} 3. d5 {[%clk 0:03:00]}  d6 {[%clk 0:02:59]} 4. g3 {[%clk 0:03:00]}  g6 {[%clk 0:02:59]} 5. Bg2 {[%clk 0:03:00]}  Bg7 {[%clk 0:03:00]} 6. Nc3 {[%clk 0:02:59]}  O-O {[%clk 0:03:00]} 7. Nf3 {[%clk 0:03:00]}  Na6 {[%clk 0:02:59]} 8. O-O {[%clk 0:03:00]}  Nc7 {[%clk 0:03:00]} 9. e4 {[%clk 0:02:56]}  Rb8 {[%clk 0:02:58]} 10. Qd3 {[%clk 0:02:54]}  a6 {[%clk 0:02:48]} 11. e5 {[%clk 0:02:54]}  Ng4 {[%clk 0:02:46]} 12. exd6 {[%clk 0:02:50]}  exd6 {[%clk 0:02:46]} 13. Bg5 {[%clk 0:02:49]}  f6 {[%clk 0:02:20]} 14. Bf4 {[%clk 0:02:48]}  Bf5 {[%clk 0:02:19]} 15. Qe2 {[%clk 0:02:47]}  Ne5 {[%clk 0:02:19]} 16. Rad1 {[%clk 0:02:39]}  b5 {[%clk 0:02:19]} 17. cxb5 {[%clk 0:02:34]}  axb5 {[%clk 0:02:18]} 18. Ne4 {[%clk 0:02:24]}  Bxe4 {[%clk 0:02:09]} 19. Qxe4 {[%clk 0:02:23]}  f5 {[%clk 0:02:06]} 20. Qe2 {[%clk 0:02:22]}  Nxf3+ {[%clk 0:02:06]} 21. Bxf3 {[%clk 0:02:22]}  Qd7 {[%clk 0:02:03]} 22. Qd2 {[%clk 0:02:13]}  b4 {[%clk 0:01:55]} 23. Rfe1 {[%clk 0:02:09]}  Rfe8 {[%clk 0:01:54]} 24. h4 {[%clk 0:02:06]}  Nb5 {[%clk 0:01:42]} 25. h5 {[%clk 0:01:42]}  Nd4 {[%clk 0:01:40]} 26. Kg2 {[%clk 0:01:41]}  Be5 {[%clk 0:01:37]} 27. Rh1 {[%clk 0:01:27]}  Qe7 {[%clk 0:01:15]} 28. Rde1 {[%clk 0:01:17]}  Qf6 {[%clk 0:00:56]} 29. hxg6 {[%clk 0:01:14]}  hxg6 {[%clk 0:00:55]} 30. Bxe5 {[%clk 0:00:38]}  Rxe5 {[%clk 0:00:53]} 31. Rxe5 {[%clk 0:00:34]}  dxe5 {[%clk 0:00:48]} 32. Qh6 {[%clk 0:00:22]}  Qg7 {[%clk 0:00:42]} 33. Qg5 {[%clk 0:00:22]}  e4 {[%clk 0:00:38]} 34. Be2 {[%clk 0:00:22]}  Rf8 {[%clk 0:00:37]} 35. Bc4 {[%clk 0:00:21]}  Rf6 {[%clk 0:00:18]} 36. d6+ {[%clk 0:00:16]}  Kf8 {[%clk 0:00:19]} 37. Rh7 {[%clk 0:00:16]}  Nf3 {[%clk 0:00:13]} 38. d7 {[%clk 0:00:14]}  Qxd7 {[%clk 0:00:08]} 39. Qxf6+ {[%clk 0:00:13]}  Ke8 {[%clk 0:00:07]} 40. Rh8# {[%clk 0:00:14]} 1-0

[Event "December 19 Early 2023"]
[Site "https://www.chess.com"]
[Date "2023.12.19"]
[Round "5"]
[White "Khodabandeh, Milad"]
[Black "Spata, German"]
[Result "1/2-1/2"]
[Board "124"]
[TimeControl "180+1"]
[WhiteFideId "12538620"]
[BlackFideId "113026"]
[WhiteElo "1846"]
[BlackElo "2260"]
[WhiteTeam "IRI"]
[BlackTeam "ARG"]
[WhiteClock "0:00:11"]
[BlackClock "0:00:06"]

1. e4 {[%clk 0:02:59]}  c5 {[%clk 0:02:41]} 2. Nf3 {[%clk 0:02:59]}  a6 {[%clk 0:02:40]} 3. d4 {[%clk 0:03:00]}  cxd4 {[%clk 0:02:39]} 4. Nxd4 {[%clk 0:03:00]}  e5 {[%clk 0:02:37]} 5. Nf3 {[%clk 0:03:00]}  Nf6 {[%clk 0:02:34]} 6. Bg5 {[%clk 0:02:48]}  h6 {[%clk 0:02:31]} 7. Bxf6 {[%clk 0:02:44]}  Qxf6 {[%clk 0:02:32]} 8. Bc4 {[%clk 0:02:39]}  Bc5 {[%clk 0:02:09]} 9. Nc3 {[%clk 0:02:36]}  Bb4 {[%clk 0:02:00]} 10. Qd3 {[%clk 0:02:22]}  O-O {[%clk 0:01:56]} 11. a3 {[%clk 0:02:22]}  Bxc3+ {[%clk 0:01:55]} 12. Qxc3 {[%clk 0:02:23]}  d6 {[%clk 0:01:52]} 13. O-O {[%clk 0:02:15]}  Nc6 {[%clk 0:01:50]} 14. h3 {[%clk 0:02:06]}  Be6 {[%clk 0:01:39]} 15. Rfd1 {[%clk 0:02:00]}  Rfd8 {[%clk 0:01:38]} 16. Bxe6 {[%clk 0:01:51]}  Qxe6 {[%clk 0:01:37]} 17. Rd5 {[%clk 0:01:35]}  Rac8 {[%clk 0:01:31]} 18. Qd3 {[%clk 0:01:29]}  Ne7 {[%clk 0:01:25]} 19. Ra5 {[%clk 0:01:17]}  Qc4 {[%clk 0:01:24]} 20. Qb3 {[%clk 0:00:27]}  Qxb3 {[%clk 0:01:17]} 21. cxb3 {[%clk 0:00:28]}  Rc2 {[%clk 0:01:17]} 22. Rd1 {[%clk 0:00:20]}  Nc6 {[%clk 0:01:00]} 23. Rad5 {[%clk 0:00:20]}  Rxb2 {[%clk 0:00:58]} 24. Nxe5 {[%clk 0:00:20]}  Nxe5 {[%clk 0:00:52]} 25. Rxe5 {[%clk 0:00:19]}  Rxb3 {[%clk 0:00:52]} 26. Re7 {[%clk 0:00:18]}  b5 {[%clk 0:00:35]} 27. e5 {[%clk 0:00:18]}  Kf8 {[%clk 0:00:33]} 28. Ra7 {[%clk 0:00:14]}  Rxa3 {[%clk 0:00:27]} 29. exd6 {[%clk 0:00:14]}  b4 {[%clk 0:00:20]} 30. Re1 {[%clk 0:00:14]}  Ra5 {[%clk 0:00:12]} 31. g4 {[%clk 0:00:11]}  Rd5 {[%clk 0:00:02]} 32. Ree7 {[%clk 0:00:11]}  R5xd6 {[%clk 0:00:02]} 33. Rxf7+ {[%clk 0:00:11]}  Kg8 {[%clk 0:00:03]} 34. Rxg7+ {[%clk 0:00:12]}  Kh8 {[%clk 0:00:03]} 35. Rh7+ {[%clk 0:00:12]}  Kg8 {[%clk 0:00:04]} 36. Rag7+ {[%clk 0:00:13]}  Kf8 {[%clk 0:00:04]} 37. Rf7+ {[%clk 0:00:12]}  Kg8 {[%clk 0:00:05]} 38. Rhg7+ {[%clk 0:00:12]}  Kh8 {[%clk 0:00:05]} 39. h4 {[%clk 0:00:12]}  b3 {[%clk 0:00:05]} 40. Rh7+ {[%clk 0:00:12]}  Kg8 {[%clk 0:00:05]} 41. Rfg7+ {[%clk 0:00:13]}  Kf8 {[%clk 0:00:05]} 42. Rf7+ {[%clk 0:00:13]}  Kg8 {[%clk 0:00:06]} 43. Rhg7+ {[%clk 0:00:13]}  Kh8 {[%clk 0:00:06]} 44. Rh7+ {[%clk 0:00:11]}  Kg8 {[%clk 0:00:06]} 1/2-1/2

[Event "December 19 Early 2023"]
[Site "https://www.chess.com"]
[Date "2023.12.19"]
[Round "5"]
[White "Belov, Alexei"]
[Black "Santos, Rafael Ventura Dos"]
[Result "1-0"]
[Board "127"]
[TimeControl "180+1"]
[WhiteFideId "4128206"]
[BlackFideId "2122227"]
[WhiteElo "2576"]
[BlackElo "2138"]
[WhiteTeam "RUS"]
[BlackTeam "BRA"]
[WhiteClock "0:00:15"]
[BlackClock "0:00:12"]

1. e4 {[%clk 0:03:00]}  c5 {[%clk 0:02:58]} 2. Nf3 {[%clk 0:02:57]}  d6 {[%clk 0:02:57]} 3. d4 {[%clk 0:02:58]}  cxd4 {[%clk 0:02:57]} 4. Nxd4 {[%clk 0:02:58]}  Nf6 {[%clk 0:02:58]} 5. Nc3 {[%clk 0:02:59]}  a6 {[%clk 0:02:58]} 6. Be2 {[%clk 0:02:59]}  Nbd7 {[%clk 0:02:58]} 7. f4 {[%clk 0:02:55]}  g6 {[%clk 0:02:57]} 8. O-O {[%clk 0:02:51]}  Bg7 {[%clk 0:02:57]} 9. a4 {[%clk 0:02:50]}  O-O {[%clk 0:02:56]} 10. Be3 {[%clk 0:02:50]}  Qc7 {[%clk 0:02:53]} 11. Bf3 {[%clk 0:02:48]}  e5 {[%clk 0:02:52]} 12. Nb3 {[%clk 0:02:45]}  exf4 {[%clk 0:02:50]} 13. Bxf4 {[%clk 0:02:45]}  Ne5 {[%clk 0:02:50]} 14. Kh1 {[%clk 0:02:37]}  Be6 {[%clk 0:02:49]} 15. Nd4 {[%clk 0:02:35]}  Rac8 {[%clk 0:02:39]} 16. h3 {[%clk 0:02:26]}  Rfe8 {[%clk 0:02:32]} 17. Be2 {[%clk 0:02:18]}  Qb6 {[%clk 0:01:54]} 18. Rb1 {[%clk 0:02:08]}  Qb4 {[%clk 0:01:45]} 19. Qd2 {[%clk 0:01:43]}  Nc4 {[%clk 0:01:35]} 20. Bxc4 {[%clk 0:01:38]}  Rxc4 {[%clk 0:01:36]} 21. Nxe6 {[%clk 0:01:35]}  Rxe6 {[%clk 0:01:33]} 22. Qd3 {[%clk 0:01:04]}  Nxe4 {[%clk 0:01:26]} 23. Nd5 {[%clk 0:01:02]}  Qc5 {[%clk 0:01:10]} 24. Be3 {[%clk 0:00:53]}  Qc6 {[%clk 0:01:01]} 25. b3 {[%clk 0:00:42]}  Rxc2 {[%clk 0:00:58]} 26. Rfc1 {[%clk 0:00:40]}  Rxc1+ {[%clk 0:00:48]} 27. Rxc1 {[%clk 0:00:40]}  Qd7 {[%clk 0:00:49]} 28. Rc7 {[%clk 0:00:37]}  Qe8 {[%clk 0:00:44]} 29. Qc4 {[%clk 0:00:35]}  Nc5 {[%clk 0:00:40]} 30. b4 {[%clk 0:00:28]}  Re4 {[%clk 0:00:40]} 31. Qc1 {[%clk 0:00:24]}  Nd3 {[%clk 0:00:28]} 32. Qc2 {[%clk 0:00:23]}  Rxe3 {[%clk 0:00:26]} 33. Rc8 {[%clk 0:00:23]}  Re1+ {[%clk 0:00:24]} 34. Kh2 {[%clk 0:00:23]}  Qxc8 {[%clk 0:00:21]} 35. Qxc8+ {[%clk 0:00:22]}  Bf8 {[%clk 0:00:21]} 36. Qc3 {[%clk 0:00:15]}  Rd1 {[%clk 0:00:14]} 37. Ne3 {[%clk 0:00:15]}  Rc1 {[%clk 0:00:10]} 38. Qxd3 {[%clk 0:00:15]}  Bg7 {[%clk 0:00:11]} 39. Qxd6 {[%clk 0:00:14]}  Rc8 {[%clk 0:00:11]} 40. Nd5 {[%clk 0:00:14]}  Re8 {[%clk 0:00:11]} 41. Nf6+ {[%clk 0:00:14]}  Bxf6 {[%clk 0:00:11]} 42. Qxf6 {[%clk 0:00:15]}  Re6 {[%clk 0:00:12]} 43. Qd8+ {[%clk 0:00:15]}  Kg7 {[%clk 0:00:12]} 44. Qd7 {[%clk 0:00:15]}  b6 {[%clk 0:00:12]} 45. Qb7 {[%clk 0:00:14]}  a5 {[%clk 0:00:12]} 46. bxa5 {[%clk 0:00:14]}  bxa5 {[%clk 0:00:13]} 47. Qb5 {[%clk 0:00:15]}  Re5 {[%clk 0:00:12]} 48. Qxe5+ {[%clk 0:00:15]} 1-0

[Event "December 19 Early 2023"]
[Site "https://www.chess.com"]
[Date "2023.12.19"]
[Round "5"]
[White "Deng, Henry"]
[Black "Mesa Cruz, Juan Carlos"]
[Result "1-0"]
[Board "131"]
[TimeControl "180+1"]
[WhiteFideId "30965454"]
[BlackFideId "6423400"]
[WhiteElo "2561"]
[BlackElo "2142"]
[WhiteTeam "USA"]
[BlackTeam "DOM"]
[WhiteClock "0:01:31"]
[BlackClock "0:00:02"]

1. e4 {[%clk 0:03:00]}  c5 {[%clk 0:02:58]} 2. Nc3 {[%clk 0:03:00]}  a6 {[%clk 0:02:57]} 3. g3 {[%clk 0:02:59]}  b5 {[%clk 0:02:56]} 4. Bg2 {[%clk 0:03:00]}  Bb7 {[%clk 0:02:56]} 5. d3 {[%clk 0:03:00]}  d6 {[%clk 0:02:56]} 6. Nh3 {[%clk 0:02:59]}  e6 {[%clk 0:02:56]} 7. O-O {[%clk 0:02:58]}  Nd7 {[%clk 0:02:56]} 8. f4 {[%clk 0:02:58]}  Ne7 {[%clk 0:02:56]} 9. f5 {[%clk 0:02:53]}  exf5 {[%clk 0:02:43]} 10. exf5 {[%clk 0:02:54]}  Bxg2 {[%clk 0:02:44]} 11. Kxg2 {[%clk 0:02:54]}  Qc7 {[%clk 0:02:17]} 12. Qf3 {[%clk 0:02:39]}  Qc6 {[%clk 0:02:16]} 13. Qxc6 {[%clk 0:02:37]}  Nxc6 {[%clk 0:02:17]} 14. Nd5 {[%clk 0:02:38]}  O-O-O {[%clk 0:02:00]} 15. Bf4 {[%clk 0:02:24]}  f6 {[%clk 0:01:53]} 16. c3 {[%clk 0:02:22]}  Ne7 {[%clk 0:01:44]} 17. Ne3 {[%clk 0:02:15]}  Ne5 {[%clk 0:01:35]} 18. d4 {[%clk 0:02:11]}  Nd3 {[%clk 0:01:33]} 19. b3 {[%clk 0:02:05]}  g5 {[%clk 0:01:26]} 20. fxg6 {[%clk 0:02:02]}  hxg6 {[%clk 0:01:24]} 21. Rad1 {[%clk 0:02:01]}  Nxf4+ {[%clk 0:00:53]} 22. Nxf4 {[%clk 0:01:59]}  Bh6 {[%clk 0:00:39]} 23. Ned5 {[%clk 0:01:44]}  Nxd5 {[%clk 0:00:35]} 24. Nxd5 {[%clk 0:01:45]}  Rde8 {[%clk 0:00:07]} 25. Rxf6 {[%clk 0:01:43]}  Bg5 {[%clk 0:00:06]} 26. Rf2 {[%clk 0:01:44]}  Kb7 {[%clk 0:00:02]} 27. dxc5 {[%clk 0:01:40]}  dxc5 {[%clk 0:00:03]} 28. h4 {[%clk 0:01:37]}  Bd8 {[%clk 0:00:02]} 29. Nf4 {[%clk 0:01:30]}  g5 {[%clk 0:00:02]} 30. hxg5 {[%clk 0:01:31]}  Bxg5 {[%clk 0:00:02]} 31. Nd3 {[%clk 0:01:31]}  Rhg8 {[%clk 0:00:03]} 32. Nxc5+ {[%clk 0:01:31]}  Kc6 {[%clk 0:00:03]} 33. Nxa6 {[%clk 0:01:30]}  Be3 {[%clk 0:00:03]} 34. Re2 {[%clk 0:01:29]}  Kb6 {[%clk 0:00:03]} 35. Nb4 {[%clk 0:01:29]}  Bf4 {[%clk 0:00:04]} 36. Nd5+ {[%clk 0:01:30]}  Kc5 {[%clk 0:00:03]} 37. Nxf4 {[%clk 0:01:30]}  Rxe2+ {[%clk 0:00:03]} 38. Nxe2 {[%clk 0:01:31]}  Ra8 {[%clk 0:00:03]} 39. Rd2 {[%clk 0:01:31]}  b4 {[%clk 0:00:04]} 40. cxb4+ {[%clk 0:01:31]}  Kxb4 {[%clk 0:00:05]} 41. g4 {[%clk 0:01:31]}  Kc5 {[%clk 0:00:05]} 42. Kg3 {[%clk 0:01:32]}  Rd8 {[%clk 0:00:02]} 43. Rxd8 {[%clk 0:01:31]} 1-0

[Event "December 19 Early 2023"]
[Site "https://www.chess.com"]
[Date "2023.12.19"]
[Round "5"]
[White "Koridze, Lile"]
[Black "Tifferet, Shakked"]
[Result "0-1"]
[Board "132"]
[TimeControl "180+1"]
[WhiteFideId "13612514"]
[BlackFideId "2811529"]
[WhiteElo "2061"]
[BlackElo "2142"]
[WhiteTeam "GEO"]
[BlackTeam "ISR"]
[WhiteClock "0:01:55"]
[BlackClock "0:02:28"]

1. d4 {[%clk 0:03:00]}  d5 {[%clk 0:02:58]} 2. c4 {[%clk 0:03:00]}  c6 {[%clk 0:02:58]} 3. Nf3 {[%clk 0:03:00]}  Nf6 {[%clk 0:02:58]} 4. e3 {[%clk 0:03:00]}  g6 {[%clk 0:02:57]} 5. Nc3 {[%clk 0:02:58]}  Bg7 {[%clk 0:02:57]} 6. h3 {[%clk 0:02:57]}  O-O {[%clk 0:02:57]} 7. Bd3 {[%clk 0:02:57]}  c5 {[%clk 0:02:53]} 8. dxc5 {[%clk 0:02:47]}  dxc4 {[%clk 0:02:50]} 9. Bxc4 {[%clk 0:02:46]}  Qxd1+ {[%clk 0:02:50]} 10. Kxd1 {[%clk 0:02:45]}  Nbd7 {[%clk 0:02:49]} 11. Ke2 {[%clk 0:02:41]}  Nxc5 {[%clk 0:02:48]} 12. Rd1 {[%clk 0:02:29]}  b6 {[%clk 0:02:44]} 13. Bd2 {[%clk 0:02:10]}  Bb7 {[%clk 0:02:43]} 14. Be1 {[%clk 0:02:10]}  Rac8 {[%clk 0:02:42]} 15. Rac1 {[%clk 0:02:10]}  Nce4 {[%clk 0:02:30]} 16. Bb3 {[%clk 0:01:55]}  Ba6+ {[%clk 0:02:28]} 0-1